bitfinex/quotes_SOLUSD_20251120
["timestamp","ask_amount","ask_price","bid_price","bid_amount"]
[1763669509412,1.82,133.16,133.12,0.72]
[1763669509413,1.82,133.16,133.14,12.29884913]
[1763669509701,10.35535722,133.15,133.14,12.29884913]
[1763669509893,10.35535722,133.15,133.12,0.72]
[1763669510080,2.49,133.16,133.14,12.29884913]
[1763669510289,10.35971564,133.15,133.14,12.29884913]
[1763669510695,10.35971564,133.15,133.12,0.72]
[1763669510896,5.02912735,133.14,133.13,12.29884913]
[1763669511095,5.02912735,133.15,133.13,12.29884913]
[1763669511418,50.0,133.19,133.14,13.00884913]
[1763669511707,50.0,133.2,133.14,0.71]
[1763669511886,50.0,133.2,133.15,0.71]
[1763669511887,5.03691059,133.19,133.15,0.71]
[1763669512087,5.03690878,133.19,133.15,0.71]
[1763669512282,50.66,133.2,133.15,0.71]
[1763669513009,1.82,133.21,133.19,12.29884913]
[1763669513210,1.82,133.21,133.16,9.78882769]
[1763669513812,1.82,133.21,133.17,0.71]
[1763669514113,1.82,133.21,133.14,0.71]
[1763669514114,55.68953171,133.2,133.14,0.71]
[1763669514419,5.02953171,133.19,133.17,12.29884913]
[1763669514584,5.68953171,133.19,133.17,12.29884913]
[1763669515498,5.68953171,133.18,133.16,12.29884913]
[1763669515696,0.66,133.18,133.16,12.29884913]
[1763669515899,5.02953171,133.17,133.15,12.29884913]
[1763669516098,5.02953171,133.17,133.16,12.29884913]
[1763669516396,0.66,133.18,133.16,12.29884913]
[1763669516598,5.68953171,133.18,133.16,12.29884913]
[1763669516998,0.66,133.18,133.16,12.29884913]
[1763669517222,57.48953171,133.17,133.11,18.83096]
[1763669517423,10.35686693,133.16,133.14,12.29884913]
[1763669517597,5.02953171,133.16,133.14,12.29884913]
[1763669518108,5.68953171,133.16,133.14,12.29884913]
[1763669519112,5.02953171,133.15,133.14,12.29884913]
[1763669519813,5.68953171,133.16,133.14,12.29884913]
[1763669520012,5.02953171,133.16,133.15,12.29884913]
[1763669521015,1.8,133.17,133.15,13.00884913]
[1763669521215,5.03032093,133.18,133.16,12.29884913]
[1763669521413,5.03032093,133.18,133.15,0.71]
[1763669521414,5.03032093,133.18,133.17,12.29884913]
[1763669521624,5.69032093,133.18,133.16,12.29884913]
[1763669521833,5.03032093,133.17,133.16,12.29884913]
[1763669522188,0.66,133.17,133.15,12.29884913]
[1763669522401,5.69032093,133.17,133.15,12.29884913]
[1763669522596,0.66,133.17,133.14,12.29884913]
[1763669522891,5.03032093,133.16,133.15,12.29884913]
[1763669523322,5.03032093,133.18,133.15,13.00884913]
[1763669523507,5.03032093,133.17,133.15,0.71]
[1763669523707,5.03032093,133.18,133.15,0.71]
[1763669524014,5.03032093,133.17,133.13,0.71]
[1763669524615,5.03032093,133.17,133.16,12.29884913]
[1763669524914,5.03032093,133.18,133.16,5.14544222]
[1763669525121,5.03032093,133.17,133.16,5.14544222]
[1763669525315,5.69032093,133.18,133.16,5.14544222]
[1763669525532,52.46,133.19,133.17,5.14544222]
[1763669525738,10.40386154,133.18,133.17,5.14544222]
[1763669526022,11.06386154,133.18,133.15,5.14544222]
[1763669526210,11.06386154,133.17,133.15,5.14544222]
[1763669526417,0.66,133.17,133.15,5.14544222]
[1763669526641,11.06530875,133.17,133.15,5.14544222]
[1763669526797,5.03646774,133.18,133.16,5.14544222]
[1763669526998,5.03646774,133.18,133.17,5.14544222]
[1763669527203,51.8,133.19,133.17,5.14544222]
[1763669527405,11.06596479,133.18,133.12,9.78882769]
[1763669527712,5.03776316,133.17,133.13,0.71]
[1763669527901,5.69776316,133.17,133.15,5.14544222]
[1763669528103,10.40207476,133.16,133.14,5.14544222]
[1763669528318,5.69776316,133.16,133.14,5.14544222]
[1763669528519,5.69776316,133.16,133.13,5.14544222]
[1763669528822,5.69776316,133.16,133.14,5.14544222]
[1763669529325,5.69776316,133.16,133.15,5.14544222]
[1763669529523,11.06287223,133.16,133.14,5.14544222]
[1763669529819,5.69776316,133.16,133.14,5.14544222]
[1763669530227,5.69776316,133.16,133.12,0.71]
[1763669530404,10.40333529,133.15,133.14,5.14544222]
[1763669530723,10.40333529,133.15,133.13,5.14544222]
[1763669530921,5.03776316,133.15,133.14,5.14544222]
[1763669531113,5.03776316,133.16,133.14,5.14544222]
[1763669531312,5.03776316,133.16,133.15,5.14544222]
[1763669531495,51.8,133.19,133.15,5.14544222]
[1763669531695,10.40248886,133.18,133.17,5.14544222]
[1763669531917,10.40248886,133.18,133.16,5.14544222]
[1763669532119,5.03579865,133.17,133.16,5.14544222]
[1763669532423,5.69579865,133.18,133.16,5.14544222]
[1763669532637,5.03579865,133.17,133.14,0.71]
[1763669532801,5.03579865,133.18,133.14,0.71]
[1763669533000,5.03579865,133.17,133.14,0.71]
[1763669533313,5.69579865,133.18,133.14,0.71]
[1763669533516,5.03579865,133.17,133.14,0.71]
[1763669534201,5.03579865,133.18,133.14,0.71]
[1763669534397,5.03579865,133.17,133.14,0.71]
[1763669534601,5.69579865,133.18,133.14,0.71]
[1763669534822,5.69579865,133.18,133.1,9.88882769]
[1763669534823,10.39135362,133.17,133.1,9.88882769]
[1763669535023,5.03579865,133.17,133.16,12.28813152]
[1763669535330,10.39147821,133.17,133.16,12.28813152]
[1763669535514,5.35575109,133.17,133.16,12.28813152]
[1763669535833,10.39154974,133.17,133.16,12.28813152]
[1763669536008,5.35575109,133.17,133.16,12.28813152]
[1763669536205,10.39154974,133.17,133.16,12.28813152]
[1763669536410,5.35575109,133.17,133.16,12.28813152]
[1763669536732,10.39154974,133.17,133.16,12.28813152]
[1763669536918,5.35575109,133.17,133.16,12.28813152]
[1763669537120,10.39154974,133.17,133.16,12.28813152]
[1763669537325,5.35575109,133.17,133.16,12.28813152]
[1763669537526,10.39154974,133.17,133.16,12.28813152]
[1763669538324,10.39154974,133.17,133.14,0.71]
[1763669538628,5.03579865,133.16,133.14,0.71]
[1763669538827,5.03579865,133.16,133.15,12.28813152]
[1763669539146,5.03579865,133.18,133.15,12.28813152]
[1763669539434,10.38625187,133.17,133.16,12.28813152]
[1763669540315,5.03579865,133.17,133.16,12.28813152]
[1763669540516,5.03579865,133.18,133.16,73.48813152]
[1763669540721,1.8,133.19,133.17,12.28813152]
[1763669540907,7.50579865,133.19,133.17,12.28813152]
[1763669541109,2.47,133.19,133.17,12.28813152]
[1763669541318,5.03579865,133.18,133.17,12.28813152]
[1763669542107,10.3823428,133.18,133.17,12.28813152]
[1763669544326,5.03579865,133.18,133.17,12.28813152]
[1763669544807,10.38085318,133.18,133.17,12.28813152]
[1763669545415,11.05085318,133.18,133.17,12.28813152]
[1763669545927,10.38085318,133.18,133.17,12.28813152]
[1763669546126,11.05085318,133.18,133.15,0.71]
[1763669546327,0.67,133.18,133.17,12.28813152]
[1763669546528,5.68376832,133.18,133.17,12.28813152]
[1763669546719,11.02732431,133.18,133.17,12.28813152]
[1763669546919,11.02732431,133.18,133.15,61.2]
[1763669547134,10.35732431,133.17,133.16,12.28813152]
[1763669547744,11.02732431,133.17,133.16,12.28813152]
[1763669548041,10.35732431,133.17,133.16,12.28813152]
[1763669549113,10.35498129,133.17,133.16,12.28813152]
[1763669549417,5.34121297,133.17,133.16,12.28813152]
[1763669549639,10.35498129,133.17,133.16,12.28813152]
[1763669549930,5.34121297,133.17,133.16,12.28813152]
[1763669550116,10.35498129,133.17,133.16,12.28813152]
[1763669552441,10.35498129,133.17,133.16,73.48813152]
[1763669553314,10.35498129,133.17,133.16,12.28813152]
[1763669553514,11.03498129,133.17,133.16,12.28813152]
[1763669553912,10.35498129,133.17,133.16,12.28813152]
[1763669554118,10.36060367,133.17,133.16,12.28813152]
[1763669554533,10.36060367,133.17,133.14,0.67]
[1763669554734,5.01376832,133.16,133.14,0.67]
[1763669555037,5.69681347,133.18,133.14,0.67]
[1763669555236,10.40988534,133.17,133.14,0.67]
[1763669555428,5.01716687,133.18,133.14,0.67]
[1763669555739,5.39273581,133.17,133.14,0.67]
[1763669555934,5.69600957,133.18,133.16,12.28813152]
[1763669556133,10.40815193,133.17,133.14,0.67]
[1763669556333,0.68,133.18,133.14,0.67]
[1763669556537,10.41541181,133.17,133.14,0.67]
[1763669556728,0.68,133.18,133.14,0.67]
[1763669557041,10.41541437,133.17,133.14,0.67]
[1763669557234,52.48,133.19,133.16,5.14558642]
[1763669557424,10.4195429,133.18,133.17,5.14558642]
[1763669557628,11.0995429,133.18,133.17,5.14558642]
[1763669558025,10.4195429,133.18,133.17,5.14558642]
[1763669560326,10.4195429,133.18,133.16,5.14558642]
[1763669560522,10.4195429,133.17,133.15,0.67]
[1763669560722,2.48,133.19,133.15,0.67]
[1763669560929,10.36477092,133.18,133.15,0.67]
[1763669561246,10.36477092,133.17,133.15,0.67]
[1763669561419,0.68,133.18,133.15,0.67]
[1763669561734,10.36455016,133.17,133.14,61.2]
[1763669561940,0.68,133.18,133.14,61.2]
[1763669562121,10.36246442,133.17,133.14,61.2]
[1763669562319,10.36246442,133.16,133.14,61.2]
[1763669562529,5.34095913,133.15,133.14,61.2]
[1763669562744,5.01619539,133.16,133.14,64.49315191]
[1763669563049,0.68,133.18,133.15,3.29315191]
[1763669563219,11.03741456,133.17,133.16,3.29315191]
[1763669564956,11.03741456,133.17,133.15,3.29315191]
[1763669565246,10.35741456,133.16,133.15,3.29315191]
[1763669565631,11.03741456,133.16,133.15,3.29315191]
[1763669565823,6.02100947,133.16,133.15,3.29315191]
[1763669566225,10.35741456,133.16,133.15,3.29315191]
[1763669566551,5.34100947,133.16,133.15,3.96315191]
[1763669566727,6.02100947,133.16,133.13,0.67]
[1763669566921,5.01566293,133.16,133.13,164.47]
[1763669567124,11.03533271,133.15,133.1,61.3]
[1763669567430,5.34009654,133.14,133.13,3.29315191]
[1763669567740,10.35689196,133.14,133.13,3.29315191]
[1763669568928,5.01679542,133.16,133.13,3.96315191]
[1763669569127,5.01679542,133.16,133.15,3.29315191]
[1763669569128,5.01967198,133.16,133.15,3.29315191]
[1763669569353,51.8,133.17,133.15,3.29315191]
[1763669569354,1.8,133.17,133.15,3.29315191]
[1763669569524,6.81765947,133.17,133.16,3.29315191]
[1763669570940,1.8,133.17,133.16,3.29315191]
[1763669572345,18.12096,133.21,133.16,3.97315191]
[1763669572346,0.7,133.21,133.16,3.97315191]
[1763669572535,2.5,133.22,133.2,3.29315191]
[1763669572854,0.7,133.21,133.15,18.80096]
[1763669573042,0.7,133.21,133.19,3.29315191]
[1763669573359,5.0274875,133.21,133.16,10.46882769]
[1763669573549,5.7274875,133.21,133.17,0.68]
[1763669574135,5.0274875,133.21,133.2,3.29315191]
[1763669574533,6.82398214,133.22,133.2,3.29315191]
[1763669574731,6.82398214,133.22,133.21,3.29315191]
[1763669575940,1.8,133.22,133.21,3.29315191]
[1763669576355,2.5,133.22,133.21,3.29315191]
[1763669576531,2.5,133.22,133.17,0.68]
[1763669576732,7.52096131,133.22,133.2,3.29315191]
[1763669577339,7.52096131,133.22,133.21,3.29315191]
[1763669577662,2.5,133.22,133.21,3.29315191]
[1763669578034,1.8,133.22,133.21,3.29315191]
[1763669578360,52.5,133.22,133.18,3.29315191]
[1763669578674,5.71786936,133.21,133.18,3.29315191]
[1763669578957,0.7,133.2,133.19,3.29315191]
[1763669579154,0.7,133.2,133.17,0.68]
[1763669579337,0.7,133.2,133.19,3.29315191]
[1763669579959,51.8,133.22,133.19,3.97315191]
[1763669579960,1.8,133.22,133.19,3.97315191]
[1763669580161,1.8,133.22,133.21,3.29315191]
[1763669580358,1.8,133.22,133.2,3.29315191]
[1763669580958,0.7,133.21,133.2,3.29315191]
[1763669581267,0.7,133.21,133.19,3.29315191]
[1763669581749,0.7,133.21,133.2,3.29315191]
[1763669581944,0.7,133.21,133.19,3.29315191]
[1763669582152,5.71035701,133.21,133.17,18.12096]
[1763669582465,51.8,133.22,133.19,3.29315191]
[1763669582654,0.7,133.2,133.19,3.29315191]
[1763669583056,51.8,133.22,133.19,3.29315191]
[1763669583057,1.8,133.22,133.19,3.29315191]
[1763669583363,1.8,133.22,133.21,3.29315191]
[1763669583546,2.5,133.22,133.21,3.29315191]
[1763669583864,52.5,133.22,133.19,3.29315191]
[1763669584045,0.7,133.21,133.19,3.29315191]
[1763669584961,0.7,133.21,133.18,3.29315191]
[1763669585557,0.7,133.21,133.16,18.80096]
[1763669585760,5.7045915,133.21,133.17,3.29315191]
[1763669586273,0.7,133.2,133.17,3.29315191]
[1763669586468,50.7,133.2,133.14,18.12096]
[1763669586657,5.00517619,133.19,133.15,3.29315191]
[1763669586850,1.8,133.18,133.15,3.29315191]
[1763669587059,2.5,133.18,133.15,3.29315191]
[1763669587254,0.7,133.17,133.15,3.29315191]
[1763669587654,1.8,133.18,133.16,3.29315191]
[1763669587857,1.8,133.18,133.17,3.29315191]
[1763669588547,1.8,133.18,133.17,3.97315191]
[1763669588743,6.80517619,133.21,133.17,3.97315191]
[1763669589077,2.5,133.24,133.2,3.29315191]
[1763669589250,1.8,133.24,133.23,3.29315191]
[1763669589446,0.7,133.23,133.18,9.78882769]
[1763669589651,0.7,133.23,133.2,3.29315191]
[1763669590042,0.7,133.23,133.21,3.29315191]
[1763669590271,1.8,133.24,133.22,3.29315191]
[1763669590659,0.7,133.23,133.21,3.29315191]
[1763669590861,55.70380613,133.23,133.17,18.80096]
[1763669591048,5.00380613,133.22,133.2,3.29315191]
[1763669591373,5.00380613,133.22,133.14,0.68]
[1763669591374,0.7,133.21,133.14,0.68]
[1763669591556,50.0,133.19,133.16,3.29315191]
[1763669591745,1.8,133.2,133.18,3.29315191]
[1763669591941,1.8,133.2,133.15,10.46882769]
[1763669592151,50.61,133.19,133.13,0.68]
[1763669592346,5.00042574,133.18,133.14,3.29315191]
[1763669592752,5.00042574,133.18,133.14,0.68]
[1763669592977,5.61042574,133.18,133.14,0.68]
[1763669593149,5.61042574,133.18,133.15,3.29315191]
[1763669593349,5.00042574,133.18,133.16,3.29315191]
[1763669593749,6.80042574,133.2,133.17,3.97315191]
[1763669593988,6.80042574,133.2,133.15,10.46882769]
[1763669594152,1.8,133.2,133.19,3.29315191]
[1763669595182,1.8,133.2,133.18,0.68]
[1763669595366,1.8,133.2,133.19,3.29315191]
[1763669595688,1.8,133.2,133.18,3.29315191]
[1763669595885,2.41,133.2,133.16,3.29315191]
[1763669596187,2.41,133.2,133.16,64.49315191]
[1763669596188,0.61,133.19,133.16,64.49315191]
[1763669596385,50.61,133.19,133.16,61.2]
[1763669596591,5.01037344,133.18,133.16,61.2]
[1763669596788,5.01037344,133.18,133.16,64.49315191]
[1763669597585,5.01037344,133.18,133.16,3.29315191]
[1763669598585,5.62037344,133.18,133.14,0.68]
[1763669598887,5.62037344,133.18,133.15,3.29315191]
[1763669599069,5.01037344,133.18,133.15,3.29315191]
[1763669599273,5.62037344,133.18,133.16,3.29315191]
[1763669599574,5.01037344,133.18,133.16,3.29315191]
[1763669600392,5.01037344,133.18,133.14,0.68]
[1763669600598,5.62037344,133.18,133.15,3.29315191]
[1763669600882,0.61,133.17,133.15,3.29315191]
[1763669601202,1.8,133.16,133.15,0.67]
[1763669601487,1.8,133.18,133.15,3.29315191]
[1763669601661,1.8,133.18,133.17,3.29315191]
[1763669602085,1.8,133.18,133.15,0.67]
[1763669602279,1.8,133.18,133.17,3.29315191]
[1763669602686,1.8,133.18,133.17,3.96315191]
[1763669602997,18.12096,133.16,133.09,3.49315191]
[1763669603166,68.12096,133.1,133.09,0.2]
[1763669603357,83.0029396,133.1,133.09,0.2]
[1763669603567,94.80052889,133.1,133.09,0.2]
[1763669603886,97.81427912,133.1,133.09,0.2]
[1763669604265,50.0,133.08,133.07,0.2]
[1763669604460,60.55672565,133.08,133.07,0.2]
[1763669604678,56.06571087,133.08,133.07,0.2]
[1763669604877,60.54900578,133.08,133.07,0.2]
[1763669605081,1.8,133.08,133.07,0.2]
[1763669605475,7.34439086,133.08,133.07,0.2]
[1763669605680,7.34426525,133.08,133.07,0.2]
[1763669605887,51.8,133.08,133.07,0.2]
[1763669606192,62.84267121,133.08,133.07,0.2]
[1763669606362,57.85380727,133.08,133.07,0.2]
[1763669607276,52.31,133.08,133.07,0.2]
[1763669607590,148.58888207,133.08,133.07,0.2]
[1763669607887,130.46792207,133.08,133.07,0.2]
[1763669608896,127.90978769,133.05,133.04,0.2]
[1763669609065,146.27888207,133.05,133.04,0.2]
[1763669609265,148.27888206,133.05,133.04,0.2]
[1763669609466,154.98886759,133.05,133.04,0.2]
[1763669610092,152.9888676,133.05,133.04,0.2]
[1763669610398,158.84354776,133.05,133.04,0.2]
[1763669610713,109.78882769,133.03,133.01,0.1]
[1763669610995,129.95792207,133.03,133.01,0.1]
[1763669611173,130.46792207,133.03,133.01,0.1]
[1763669611800,125.45219079,133.03,133.01,0.1]
[1763669612176,130.39967383,133.03,133.01,0.1]
[1763669612492,130.39448047,133.03,133.01,0.1]
[1763669612693,65.6633631,133.03,133.01,0.1]
[1763669613272,51.8,133.03,133.01,7.95586319]
[1763669613469,51.8,133.03,133.02,8.85124275]
[1763669613777,50.0,133.07,133.02,8.85124275]
[1763669613972,1.8,133.06,133.04,7.85586319]
[1763669614397,1.8,133.06,133.04,0.72]
[1763669614584,1.8,133.06,133.03,7.85586319]
[1763669614890,50.0,133.05,133.02,8.85124275]
[1763669615094,50.0,133.05,133.03,0.72]
[1763669615714,50.0,133.05,133.03,8.57586319]
[1763669616086,1.8,133.06,133.04,8.57586319]
[1763669616282,1.8,133.06,133.04,0.72]
[1763669617016,50.0,133.04,133.02,0.27537956]
[1763669617210,50.0,133.04,133.02,8.85124275]
[1763669617394,51.8,133.06,133.03,7.85586319]
[1763669617714,51.8,133.06,133.03,8.57586319]
[1763669618089,51.8,133.06,133.04,0.72]
[1763669618588,51.8,133.06,133.03,8.57586319]
[1763669618784,51.8,133.06,133.04,0.72]
[1763669619007,51.8,133.06,133.04,8.57586319]
[1763669619701,51.8,133.06,133.04,0.72]
[1763669620591,1.8,133.06,133.04,8.57586319]
[1763669620811,1.8,133.06,133.05,0.72]
[1763669621416,1.8,133.06,133.04,12.310083]
[1763669621618,1.8,133.06,133.04,13.030083]
[1763669621818,1.8,133.06,133.05,0.72]
[1763669622709,1.8,133.06,133.04,12.310083]
[1763669622913,1.8,133.06,133.04,13.030083]
[1763669623261,52.31,133.06,133.02,0.99537956]
[1763669623419,51.8,133.06,133.03,13.030083]
[1763669624406,51.8,133.06,133.02,0.27537956]
[1763669624407,1.8,133.06,133.05,12.310083]
[1763669624929,1.8,133.06,133.05,13.030083]
[1763669625631,50.0,133.08,133.05,13.030083]
[1763669625833,1.8,133.09,133.07,12.310083]
[1763669626132,1.8,133.09,133.07,13.030083]
[1763669626335,1.8,133.09,133.06,12.310083]
[1763669626726,1.8,133.09,133.06,13.030083]
[1763669626926,1.8,133.09,133.06,0.72]
[1763669627424,50.0,133.06,133.02,0.27537956]
[1763669627630,1.8,133.05,133.02,0.27537956]
[1763669627936,1.8,133.05,133.02,0.99537956]
[1763669628308,2.31,133.05,133.02,0.27537956]
[1763669628511,50.0,133.04,133.02,0.27537956]
[1763669630429,62.820083,133.03,133.02,0.27537956]
[1763669630629,77.55566539,133.03,133.02,0.27537956]
[1763669630936,83.05216723,133.03,133.02,0.27537956]
[1763669631537,101.54811675,133.03,133.02,0.27537956]
[1763669631747,61.78882768,133.02,133.01,0.1]
[1763669632042,105.34377207,133.02,133.01,0.1]
[1763669632611,103.34377208,133.02,133.01,0.1]
[1763669632816,103.34377208,133.02,132.95,1.93593088]
[1763669632817,109.78882769,132.96,132.95,1.93593088]
[1763669633016,101.8,132.96,132.95,1.93593088]
[1763669633254,124.40891069,132.96,132.95,1.93593088]
[1763669633619,134.84186392,132.96,132.95,1.93593088]
[1763669633827,122.53178092,132.96,132.95,1.93593088]
[1763669634325,134.84186392,132.96,132.95,1.93593088]
[1763669635216,122.53178092,132.96,132.95,1.93593088]
[1763669635415,112.74295323,132.96,132.95,1.93593088]
[1763669635617,143.17399623,132.96,132.95,1.93593088]
[1763669635913,140.65274092,132.96,132.95,1.93593088]
[1763669636241,134.84186392,132.96,132.95,1.93593088]
[1763669637023,134.8409263,132.96,132.95,1.93593088]
[1763669637216,152.9618863,132.96,132.95,1.93593088]
[1763669637439,130.86297561,132.96,132.95,1.93593088]
[1763669637749,143.17305861,132.96,132.95,1.93593088]
[1763669638355,152.9618863,132.96,132.95,1.93593088]
[1763669638941,134.8409263,132.96,132.95,1.93593088]
[1763669639330,141.02082866,132.96,132.95,1.93593088]
[1763669639544,128.71074566,132.96,132.95,1.93593088]
[1763669639744,131.23200097,132.96,132.95,1.93593088]
[1763669639942,125.05209861,132.96,132.95,1.93593088]
[1763669640170,112.74201561,132.96,132.95,1.93593088]
[1763669640332,57.29018832,132.96,132.95,1.93593088]
[1763669640534,62.23614883,132.96,132.95,1.93593088]
[1763669641049,152.96601952,132.96,132.95,1.93593088]
[1763669641246,159.14592188,132.96,132.95,1.93593088]
[1763669641634,146.83583888,132.96,132.95,1.93593088]
[1763669641837,130.86710883,132.96,132.95,1.93593088]
[1763669642033,148.84709419,132.96,132.95,1.93593088]
[1763669642569,149.35709419,132.96,132.95,1.93593088]
[1763669642767,136.53701119,132.96,132.95,1.93593088]
[1763669643068,149.35709419,132.96,132.95,1.93593088]
[1763669643457,143.17719183,132.96,132.95,1.93593088]
[1763669643832,80.35710883,132.96,132.95,1.93593088]
[1763669646665,10.43614883,132.9,132.89,13.020083]
[1763669646962,5.49018832,132.9,132.89,13.020083]
[1763669647441,10.43614883,132.9,132.89,13.020083]
[1763669647644,60.43614883,132.9,132.88,0.81]
[1763669647867,5.49018832,132.89,132.88,0.81]
[1763669648063,7.29018832,132.89,132.88,0.81]
[1763669648275,12.25132117,132.89,132.88,0.81]
[1763669648773,12.25132117,132.89,132.88,13.120083]
[1763669649078,50.0,132.94,132.88,13.120083]
[1763669649274,6.7614532,132.93,132.88,0.1]
[1763669649456,4.9614532,132.92,132.91,12.310083]
[1763669650042,6.7614532,132.93,132.91,12.310083]
[1763669650281,1.8,132.93,132.92,12.310083]
[1763669651351,50.0,132.96,132.92,12.310083]
[1763669651541,51.82,132.96,132.95,12.310083]
[1763669651742,51.82,132.96,132.94,12.310083]
[1763669652967,0.66,132.95,132.88,89.20978769]
[1763669653138,4.9604701,132.95,132.93,12.310083]
[1763669653341,4.9604701,132.95,132.88,28.00978769]
[1763669653558,4.9604701,132.95,132.93,12.310083]
[1763669653972,51.82,132.96,132.94,12.310083]
[1763669654469,51.82,132.96,132.93,12.310083]
[1763669654675,52.48,132.96,132.92,12.310083]
[1763669654878,50.0,132.94,132.88,0.1]
[1763669655264,50.0,132.94,132.91,12.310083]
[1763669655977,50.66,132.94,132.91,12.310083]
[1763669656562,50.66,132.94,132.88,0.1]
[1763669656760,50.66,132.94,132.9,12.310083]
[1763669657257,5.61596194,132.93,132.89,12.310083]
[1763669657458,52.46,132.92,132.88,12.410083]
[1763669658268,52.46,132.92,132.89,12.310083]
[1763669658481,52.46,132.92,132.88,0.1]
[1763669658681,51.8,132.92,132.91,12.310083]
[1763669658990,50.0,132.96,132.91,12.310083]
[1763669659167,50.0,132.96,132.88,61.3]
[1763669659372,50.0,132.96,132.93,12.310083]
[1763669659884,50.0,132.98,132.95,12.310083]
[1763669660057,56.18947005,133.06,132.97,12.310083]
[1763669660257,1.82,133.05,133.02,12.310083]
[1763669660476,50.0,133.03,133.0,12.310083]
[1763669660859,50.67,133.03,132.99,12.310083]
[1763669661061,0.67,133.02,132.99,12.310083]
[1763669661269,50.0,133.03,132.99,12.310083]
[1763669661270,1.82,133.01,132.99,12.310083]
[1763669661888,1.82,133.01,133.0,12.310083]
[1763669662190,51.82,133.01,132.94,18.12096]
[1763669662381,51.82,133.01,132.98,12.310083]
[1763669662382,52.49,133.01,132.98,12.310083]
[1763669662580,52.49,133.01,132.97,12.310083]
[1763669662767,51.82,133.01,133.0,12.310083]
[1763669662974,51.82,133.01,132.99,12.310083]
[1763669663383,1.82,133.01,132.99,12.310083]
[1763669664270,1.82,133.01,132.94,18.12096]
[1763669664473,2.49,133.01,132.98,12.310083]
[1763669664675,1.82,133.01,132.99,12.310083]
[1763669664890,1.82,133.01,133.0,12.310083]
[1763669665084,1.82,133.01,132.94,18.12096]
[1763669665263,1.82,133.01,132.98,12.310083]
[1763669665464,51.82,133.01,132.98,61.2]
[1763669665807,52.49,133.01,132.98,73.510083]
[1763669666471,2.49,133.01,132.98,61.2]
[1763669666668,1.82,133.01,132.99,12.310083]
[1763669667491,2.49,133.01,132.99,12.310083]
[1763669668086,2.49,133.01,132.98,61.2]
[1763669668260,2.49,133.01,132.98,73.510083]
[1763669668463,1.82,133.01,132.98,73.510083]
[1763669668666,2.49,133.01,132.98,73.510083]
[1763669668865,0.67,133.0,132.98,61.2]
[1763669669264,0.67,133.0,132.97,12.310083]
[1763669669464,50.67,133.0,132.97,12.310083]
[1763669669991,0.67,132.99,132.94,61.2]
[1763669670291,50.0,133.0,132.96,12.310083]
[1763669670476,50.67,133.0,132.96,12.310083]
[1763669670678,0.71,132.99,132.96,12.310083]
[1763669670878,50.0,133.0,132.96,12.310083]
[1763669671084,50.0,133.0,132.98,12.310083]
[1763669671262,1.82,133.01,132.99,12.310083]
[1763669671465,1.82,133.01,133.0,12.310083]
[1763669672076,51.8,133.04,133.0,12.310083]
[1763669672273,51.8,133.04,132.95,18.12096]
[1763669672274,51.8,133.04,133.02,12.310083]
[1763669672474,1.8,133.04,133.03,12.310083]
[1763669675404,2.51,133.04,132.98,81.12096]
[1763669675691,52.51,133.04,133.01,12.310083]
[1763669676084,0.71,133.03,133.01,12.310083]
[1763669676795,0.71,133.03,133.0,12.310083]
[1763669677097,50.0,132.93,132.88,0.1]
[1763669677301,50.0,132.9,132.88,0.1]
[1763669677473,51.82,132.92,132.89,12.310083]
[1763669677671,51.82,132.92,132.91,12.310083]
[1763669677903,51.82,132.95,132.91,12.310083]
[1763669678108,51.82,132.95,132.93,12.310083]
[1763669678278,1.82,132.95,132.88,18.22096]
[1763669678787,1.82,132.95,132.94,12.310083]
[1763669679095,1.82,132.98,132.94,12.310083]
[1763669679401,1.82,132.98,132.97,12.310083]
[1763669679584,1.82,132.98,132.96,12.310083]